{"text_format":"1","workbook":"xlsx","n_sheets":7,"sheets":["1. Introduktion","TEMP","2. LCC-kalkyl","3. Resultat","4. Kalkylparametrar","5. Svarsformulär","6. Beräkningsfaktorer klimatpåv"],"not_rendered":{"charts":4,"images":6,"macros":1,"external_links":1,"defined_names":20,"comments":1,"pivot_tables":0},"unopened":[],"bounds":{"document_bytes":16777216,"sheet_cells":100000,"rows_first":2000,"rows_last":500,"rows_between":2000,"halvings":0,"cell_chars":16384,"cell_head_chars":4096},"cells_cut":0,"cells_raw":0,"read":"whole","date_system":"1900"}

{"sheet":"1. Introduktion","index":0,"n_rows":34,"n_cols":8,"rows_kept":34,"cut":false,"hidden":false,"merged":[[9,1,11,4],[26,7,26,12],[28,7,28,20],[118,7,118,9],[119,7,119,22],[108,7,108,23],[109,7,109,23],[111,7,111,8],[113,7,113,20],[115,7,115,12],[92,7,92,9],[93,7,93,22],[95,7,95,22],[107,7,107,23],[117,7,117,20],[29,7,29,14],[5,1,5,2],[5,3,5,5],[8,1,8,4],[19,1,19,4],[45,7,47,20],[5,6,5,10],[5,11,5,14],[5,19,5,22],[5,15,5,18],[33,7,33,20],[32,7,32,9],[31,7,31,19],[37,7,37,19],[43,7,43,22],[22,7,22,8],[24,7,24,20]]}
[]
[null,null,null,null,null,null,"LCC-kalkyl för upphandling av utomhusbelysning"]
[null,null,null,null,null,null,"Version 1:1"]
[null,null,null,null,null,null,"Datum: 2016-09-15"]
[]
[]
[]
[]
[null,"Introduktion"]
[null,"Generella instruktioner kring hur verktyget används."]
[]
[]
[]
[]
[]
[]
[]
[]
[]
[]
[]
[]
[null,null,null,null,null,null,null,"Vad är LCC?\n"]
[]
[null,null,null,null,null,null,null,"LCC står för \"Life Cycle Costs\" - livscykelkostnader. Med hjälp av en LCC-beräkning erhålls en totalbild över varans, tjänstens eller anläggningens kostnader under hela dess nyttjandetid. Jämförelser mellan olika produktalternativ och lösningar kan göras.  Livscykelkostnadsperspektivet kan med fördel användas i flera delar av inköpsprocessen och även i det strategiska arbetet med organisationens budget. Läs mer om LCC på Upphandlingsmyndighetens webbplats: www.upphandlingsmyndigheten.se/områden/lcc. \n\n"]
[]
[null,null,null,null,null,null,null,"Hur ska jag använda detta LCC-verktyg?"]
[]
[null,null,null,null,null,null,null,"Detta LCC-verktyg är specifikt utvecklat att användas vid upphandling av utomhusbelysning. Verktyget kan med fördel användas både i behovsanalysen, vid kravställande och i anbudsutvärderingen. I denna kalkyl finns även en beräkning av klimatpåverkan, baserad på energianvändningen under anläggningens nyttjandetid. \n\nI behovsanalysen kan verktyget användas för att i ett tidigt skede få en översikt över vilka typer av kostnader som förekommer. För en belysningsanläggning utgör exempelvis driftskostnaden för energi en stor kostnadspost. Beställaren kan  testa olika föreslagna belysningslösningar, exempelvis med och utan styrning. Kalkylen kan även testas med olika scenarier för energiprisökning. \n\nNär LCC-beräkning ställs som krav i upphandlingen måste förfrågningsunderlaget beskriva de parametrar som ska ingå i beräkningen, hur dessa ska dokumenteras och vilka mätmetoder som ska användas. Använd gärna kriteriet \"belysningsanläggningens livscykelkostnad (LCC)\" som kan laddas hem genom Upphandlingmyndighetens kriteriewizard. En tumregel är att vid kravställande endast ta med de stora kostnadsposterna eller de kostnader som förväntas skilja sig åt mellan olika leverantörer. Miljökostnader kan tas med om dessa kan kostnadssättas på ett standardiserat sätt. \n\nVid anbudsutvärdering vägs livscykelkostnaden in som en parameter för bedömning av det ekonomiskt mest fördelaktiga anbudet. \nKvalitativa krav på belysningsanläggningen, såsom ljuskvalitet, ingår inte i kalkylen utan måste kravställas i förfrågningsunderlaget. Rekommendationer kring detta finns bland annat i \"Vägbelysningshandboken\" från Trafikverket."]
[null,null,null,null,null,null,null,"Hur är LCC-verktyget uppbyggt?\n"]
[]
[null,null,null,null,null,null,null,"Verktyget består av 6 flikar:\n1. Introduktion: generella instruktioner kring hur verktyget används.\n2. LCC-kalkyl: kalkylbladet där LCC-beräkningen utförs med standardiserade parametrar. Instruktioner kring vad de olika   \n    kalkylparametrarna innebär finns i kommentarsfälten på respektive rad, samt samlat i flik 4.\n3. Resultat: visuell översikt över LCC-beräkningens resultat med de 10 lönsammaste investeringsalternativen. \n4. Kalkylparametrar: samlade instruktioner kring vad kalkylparametrarna innebär och vad som ska ingå.\n5.  Svarsformulär: svarsformulär som leverantören bifogar anbudet.\n6. Beräkningsfaktorer klimatpåverkan: indata för att kunna beräkna klimatpåverkan från elenergi.\n\nBeställaren (upphandlande myndighet) anger kalkylförutsättningar och information kring användning; detta utgör grunden för beräkningen. Läs mer om kalkylförutsättningar och ekonomiska parametrar på www.upphandlingsmyndigheten.se/områden/lcc. Beställaren kan också ange information kring befintlig anläggning om sådan finns; detta för att tydliggöra förbättringarna med en ny eller renoverad anläggning. \n\nAnbudsgivaren fyller i resterande uppgifter i kalkylbladet (indata) enligt de standarder eller instruktioner som anges. Kostnaderna anges utan moms. Alternativa investeringslösningar anges i nya kolumner. Anbudsgivaren fyller i svarsformuläret (ett formulär per investeringsalternativ) och bifogar den till beställaren. Beställaren kan sedan föra in  anbudsgivarnas uppgifter i ett LCC-kalkylblad för att kunna jämföra alla anbud i resultatfliken. \n\nLCC-kalkylerna är baserade på nuvärdesmetoden för att kunna omräkna framtida kostnader till dagens värde. Omräkningsfaktorer till nuvärde är inkluderade i formlerna. Kalkylränta, elpris och användningstid är exempel på parametrar som kan variera och som måste beslutas i den upphandlande organisationen. Kostnadsbilden påverkas beroende på valet av dessa parametrar, exempelvis innebär en hög ränta att pengarnas värde sjunker under kalkylperioden och vid låg ränta behåller pengarna sitt värde. En lång användningstid gör att driftskostnadernas betydelse ökar i kalkylen. För att få en förståelse för effekten på slutresultatet vid olika scenarier, t.ex. energiprisökning, kan kalkylen testas med ett antal olika värden. \n\n"]
[null,null,null,null,null,null,null,"Kontakt"]
[null,null,null,null,null,null,null,"Upphandlingsmyndigheten utvecklar och förvaltar LCC-verktygen som är frivilliga att använda inom såväl offentlig som privat sektor. Upphandlingsmyndigheten står för innehållet i denna version. Eventuella ändringar görs på eget ansvar. Vid frågor om verktyget kan du kontakta oss via vår frågeportal på www.upphandlingsmyndigheten.se. "]

{"sheet":"TEMP","index":1,"n_rows":30,"n_cols":3,"rows_kept":30,"cut":false,"hidden":true,"merged":[]}
[]
[]
[null,null,"MSR:S LCC-KALKYL FÖR UTOMHUSBELYSNING"]
[null,null,"Version  2.1 2011-07-04"]
[]
[null,null,"Livscykelkostnader"]
[null,null,"Livscykelkostnadsanalyser beaktar den totala kostnaden för en produkt under livscykeln. Den tar därmed inte bara hänsyn till grundinvesteringen utan också till drift- och underhållskostnader. Andra kostnader som kan vara viktiga i sammanhanget är miljöskatter samt avvecklingskostnader men även inkomster såsom subventioner och restvärde kan förändra kostnadsbilden."]
[]
[null,null,"Verktyget"]
[null,null,"Utomhusbelysning är den näst största posten i kommunernas drift- och underhållskostnader och står för ca 25 % av kostnaderna. Största posten i gatubelysningen är elförbrukningen, och belysningskostnaden har ökat med ca 9 % senaste åren på grund av ökande elpriser. Kommuner kan exempelvis spara uppåt 3,2 miljoner kr/år på en investering av 301 000 kr genom att välja mer energisnål belysning.\nMiljöstyrningsrådets LCC-verktyg för utomhusbelysning är ursprungligen framtaget av Aton Teknik Konsult på uppdrag av Ljuskultur enligt riktlinjer från Energimyndigheten. Om verktyget används i anbudsutvärderingen är de viktigt att man tydligt definierar vilka parametrar som kommer att användas samt vad leverantören ska inkomma med för information. "]
[null,null,"Verktyget är i ursprungsläget låst för redigering men kan låsas upp genom menyn Verktyg /Skydd/ Ta bort bladets skydd."]
[]
[null,null,"Miljöstyrningsrådet - Vägledning för hållbar upphandling"]
[null,null,"Miljöstyrningsrådet arbetar för att bidra till en hållbar utveckling genom att stödja företag och offentlig förvaltning i deras miljöarbete på ett strategiskt och kostnadseffektivt sätt. Med tre huvudsakliga verktyg och tjänster erbjuder Miljöstyrningsråd vägledning för hållbar upphandling, miljöledning och miljörelaterad produktinformation. På Miljöstyrningsrådets hemsida, www.msr.se, hittar du mer information om LCC och övrig verksamhet."]
[]
[null,null,"Kontakt"]
[null,null,"För frågor och synpunkter angående LCC och detta verktyg kontakta helpdesk@msr.se eller tfn 08-50 10 55 50."]
[]
[]
[]
[null,null," "]
[null,null,"Miljöstyrningsrådet"]
[null,null,"Vasagatan 15-17"]
[null,null,"111 20 Stockholm"]
[null,null,"info@msr.se"]
[]
[]
[]
[]
[null,">","KLICKA HÄR FÖR ATT VISA LCC-KALKYLEN"]

{"sheet":"2. LCC-kalkyl","index":2,"n_rows":105,"n_cols":12,"rows_kept":105,"cut":false,"hidden":false,"merged":[[50,2,50,6],[51,2,51,6],[45,2,45,6],[46,2,46,6],[47,2,47,6],[48,2,48,6],[49,2,49,6],[40,2,40,6],[41,2,41,6],[42,2,42,6],[43,2,43,6],[44,2,44,6],[104,2,104,6],[102,2,102,6],[56,2,56,6],[60,2,60,6],[57,2,57,6],[59,2,59,6],[72,2,72,6],[67,2,67,6],[64,2,64,6],[62,2,62,6],[58,2,58,6],[97,2,97,6],[100,2,100,6],[55,2,55,6],[90,2,90,6],[87,2,87,6],[77,2,77,6],[80,2,80,6],[76,2,76,6],[79,2,79,6],[78,2,78,6],[75,2,75,6],[73,2,73,6],[74,2,74,6],[70,2,70,6],[63,2,63,6],[66,2,66,6],[65,2,65,6],[20,2,20,6],[22,2,22,6],[27,2,27,6],[19,2,19,6],[29,2,29,6],[28,2,28,6],[21,2,21,6],[23,2,23,6],[26,2,26,6],[53,2,53,3],[34,2,34,6],[12,5,12,8],[14,2,14,6],[15,2,15,6],[16,2,16,6],[30,2,30,6],[32,2,32,6],[36,2,36,6],[37,2,37,6],[38,2,38,6],[35,2,35,6],[33,2,33,6],[31,2,31,6],[17,2,17,6],[18,2,18,6],[11,2,11,4],[11,5,11,8],[12,2,12,4],[5,7,5,8],[5,2,5,3],[5,4,5,6],[8,2,8,7],[10,2,10,4],[10,5,10,8]]}
[]
[null,null,null,null,null,null,{"$f":"'1. Introduktion'!G2","v":"LCC-kalkyl för upphandling av utomhusbelysning"}]
[null,null,null,null,null,null,{"$f":"'1. Introduktion'!G3","v":"Version 1:1"}]
[null,null,null,null,null,null,{"$f":"'1. Introduktion'!G4","v":"Datum: 2016-09-15"}]
[]
[]
[]
[]
[null,null,"Förutsättningar (anges av beställaren)"]
[]
[null,null,"PROJEKT:"]
[null,null,"DATUM:"]
[null,null,"HANDLÄGGARE:"]
[]
[null,"1.1","Tid kalkylen omfattar",null,null,null,null,null,"år"]
[null,"1.2","Kalkylränta",null,null,null,null,1.7500000000000002E-2]
[null,"1.3","Elpris",null,null,null,null,null,"kr/kWh"]
[null,"1.4","Årlig energiprisökning (frivillig)"]
[null,"1.5","Klimatpåverkan elanvändning (frivillig)",null,null,null,null,null,"kgCO2/kWh"]
[null,"1.6","Drifttid anläggning",null,null,null,null,null,"h/år"]
[null,"1.7","Drifttid full effekt ",null,null,null,null,null,"h/år"]
[null,"1.8","Drifttid effektnivå (dimring) 1",null,null,null,null,null,"h/år"]
[null,"1.9","Drifttid effektnivå (dimring) 2 ",null,null,null,null,null,"h/år"]
[]
[null,null,"Indata från anbudsgivare"]
[]
[null,null,"Namn",null,null,null,null,null,"Befintlig anläggning","Förslag 1","Förslag 2","Förslag 3"]
[null,null,"Beräkning av investeringskostnader"]
[null,"2.1","Antal armaturer",null,null,null,null,"st"]
[null,"2.2","Pris per armatur inkl. ljuskälla, driftdon, styrutrustning",null,null,null,null,"kr/st"]
[null,"2.3","Material- och arbetskostnader per armatur",null,null,null,null,"kr/st"]
[null,"2.4","Antal stolpar och fundament",null,null,null,null,"st"]
[null,"2.5","Pris per stolpe och fundament",null,null,null,null,"kr/st"]
[null,"2.6","Material- och arbetskostnader per stolpe inkl fundament",null,null,null,null,"kr/st"]
[null,"2.7","Kostnad extern styrutrustning inkl. driftsättning och licensavgifter \n",null,null,null,null,"kr"]
[null,null,"Beräkning av driftskostnader"]
[null,"3.1","Effekt per armatur inkl driftsförluster och systemeffekt",null,null,null,null,"W"]
[null,"3.2","Reducerad effektnivå (dimring) 1",null,null,null,null,"W"]
[null,"3.3","Reducerad effektnivå (dimring) 2",null,null,null,null,"W"]
[null,null,"Beräkning av underhållskostnader"]
[null,"4.1","Ljuskällekostnad per armatur",null,null,null,null,"kr/st"]
[null,"4.2","Arbetskostnad ljuskällebyte",null,null,null,null,"kr/st"]
[null,"4.3","Utbytesintervall ljuskällor",null,null,null,null,"h"]
[null,"4.4","Driftdonskostnad",null,null,null,null,"kr/st"]
[null,"4.5","Arbetskostnad driftdonsbyte",null,null,null,null,"kr/st"]
[null,"4.6","Utbytesintervall driftdon",null,null,null,null,"h"]
[null,"4.7","Livslängd armatur ",null,null,null,null,"år"]
[null,"4.8","Livslängd stolpe ",null,null,null,null,"år"]
[null,"4.9","Arbetskostnad inspektion",null,null,null,null,"kr/st"]
[null,"4.10","Inspektionsintervall",null,null,null,null,"år"]
[null,"4.11","Arbetskostnad tillsyn",null,null,null,null,"kr/st"]
[null,"4.12","Tillsynsintervall",null,null,null,null,"år"]
[]
[null,null,"Resultat"]
[null,null,"Rangordning av alternativ",null,null,null,null,null,{"$f":"IF(I104=\"\",\"\",SUMPRODUCT(($I$104:$XFD$104<I104)*($I$104:$XFD$104<>\"\"))+SUMPRODUCT(($I$104:I104=I104)*1))","v":""},{"$f":"IF(J104=\"\",\"\",SUMPRODUCT(($I$104:$XFD$104<J104)*($I$104:$XFD$104<>\"\"))+SUMPRODUCT(($I$104:J104=J104)*1))","v":""},{"$f":"IF(K104=\"\",\"\",SUMPRODUCT(($I$104:$XFD$104<K104)*($I$104:$XFD$104<>\"\"))+SUMPRODUCT(($I$104:K104=K104)*1))","v":""},{"$f":"IF(L104=\"\",\"\",SUMPRODUCT(($I$104:$XFD$104<L104)*($I$104:$XFD$104<>\"\"))+SUMPRODUCT(($I$104:L104=L104)*1))","v":""}]
[null,null,null,null,null,null,null,null,{"$f":"I63","v":"Befintlig anläggning"},{"$f":"J63","v":"Förslag 1"},{"$f":"K63","v":"Förslag 2"},"Förslag 3"]
[null,null,"TOTALKOSTNAD",null,null,null,null,"kr",{"$f":"I104","v":""},"","",""]
[null,null,"Energikostnader per år",null,null,null,null,"kr",{"$f":"I87","v":0},0,0,0]
[null,null,"Energikostnader under hela livslängden",null,null,null,null,"kr",{"$f":"I89","v":0},0,0,0]
[null,null,"Klimatpåverkan",null,null,null,null,"kgCO2/år",{"$f":"I86*$H$19","v":0},{"$f":"J86*$H$19","v":0},0,0]
[]
[null,null,"LCC-kalkyl"]
[null,null,null,null,null,null,null,null,{"$f":"I27","v":"Befintlig anläggning"},"Förslag 1","Förslag 2","Förslag 3"]
[null,null,"INVESTERINGSKOSTNADER"]
[null,null,"Armaturer (ev. stolpe)"]
[null,null,"Antal",null,null,null,null,"st",{"$f":"I29","v":0},0,0,0]
[null,null,"á-pris",null,null,null,null,"kr/st",0,0,0,0]
[null,null,"Armaturkostnad totalt",null,null,null,null,"kr",{"$f":"I66*I67","v":0},0,0,0]
[null,null,"Stolpe och fundament"]
[null,null,"Antal stolpar inkl fundament",null,null,null,null,"st",{"$f":"I32","v":0},0,0,0]
[null,null,"á-pris",null,null,null,null,"kr/st",0,0,0,0]
[null,null,null,null,null,null,null,null,{"$f":"I70*I71","v":0},{"$f":"J70*J71","v":0},0,{"$f":"L70*L71","v":0}]
[null,null,"Installationskostnader"]
[null,null,"Material- och arbetskostnader armaturer",null,null,null,null,"kr",{"$f":"I31*I29","v":0},0,0,0]
[null,null,"Material- och arbetskostnader stolpar inkl fundament",null,null,null,null,"kr",{"$f":"I34*I32","v":0},0,0,0]
[null,null,"Installationskostnader",null,null,null,null,"kr",{"$f":"SUM(I74:I75)","v":0},{"$f":"SUM(J74:J75)","v":0},0,0]
[null,null,"Kostnad extern styrutrustning",null,null,null,null,"kr",{"$f":"I35","v":0},{"$f":"J35","v":0},0,0]
[null,null,"S:A INVESTERINGSKOSTNADER",null,null,null,null,"kr",{"$f":"I68+I72+I76+I77","v":0},0,0,0]
[]
[null,null,"ENERGI- & UNDERHÅLLSKOSTNADER"]
[null,null,"ENERGIKOSTNADER"]
[null,null,"Total installerad effekt",null,null,null,null,"W",{"$f":"I37*I29","v":0},0,0,0]
[null,null,"Energianvändning full effekt",null,null,null,null,"kWh",{"$f":"(I$37*($H$20-IF(I$84>0,$H$22,0)-IF(I$85>0,$H$23,0))*I$29/1000)","v":0},{"$f":"(J$37*($H$20-IF(J$84>0,$H$22,0)-IF(J$85>0,$H$23,0))*J$29/1000)","v":0},0,0]
[null,null,"Energianvänding effektnivå 1",null,null,null,null,"kWh",{"$f":"(I$38*$H$22*I$29)/1000","v":0},{"$f":"(J$38*$H$22*J$29)/1000","v":0},0,0]
[null,null,"Energianvändning effektnivå 2",null,null,null,null,"kWh",{"$f":"(I$39*$H$23*I$29)/1000","v":0},{"$f":"(J$39*$H$23*J$29)/1000","v":0},0,0]
[null,null,"Energianvändning / år",null,null,null,null,"kWh/år",{"$f":"(I$83+I$84+I$85)","v":0},{"$f":"(J$83+J$84+J$85)","v":0},0,0]
[null,null,"Energikostnader per år",null,null,null,null,"kr/år",{"$f":"I$86*$H$17","v":0},{"$f":"J$86*$H$17","v":0},0,0]
[null,null,"Omräkningsfaktor till nuvärde",null,null,null,null,null,{"$f":"IF($H$16=$H$18,$H$15,(1/($H$16-$H$18))*(1-((1+$H$18)/(1+$H$16))^$H$15))","v":0},{"$f":"IF($H$16=$H$18,$H$15,(1/($H$16-$H$18))*(1-((1+$H$18)/(1+$H$16))^$H$15))","v":0},0,0]
[null,null,"Energikostnader hela kalkylperioden",null,null,null,null,"kr",{"$f":"I87*I88","v":0},0,0,0]
[]
[null,null,"UNDERHÅLLSKOSTNADER OCH RE-INVESTERING"]
[null,null,"Årliga underhållskostnader ljuskällor",null,null,null,null,"kr/år",{"$f":"IF(I$43>0,(((I$41+I$42)*I$29)/(I$43/$H$20)),0)","v":0},{"$f":"IF(J$43>0,(((J$41+J$42)*J$29)/(J$43/$H$20)),0)","v":0},0,{"$f":"IF(L$43>0,(((L$41+L$42)*L$29)/(L$43/$H$20)),0)","v":0}]
[null,null,"Årliga underhållskostnader driftdon",null,null,null,null,"kr/år",{"$f":"IF(I$46>0,(((I$44+I$45)*I$29)/(I$46/$H$20)),0)","v":0},0,0,{"$f":"IF(L$46>0,(((L$44+L$45)*L$29)/(L$46/$H$20)),0)","v":0}]
[null,null,"Årlig kostnad inspektion",null,null,null,null,"kr/år",{"$f":"IF(I50>0,(I$49*I$29)/I$50,0)","v":0},{"$f":"IF(J50>0,(J$49*J$29)/J$50,0)","v":0},{"$f":"IF(K50>0,(K$49*K$29)/K$50,0)","v":0},{"$f":"IF(L50>0,(L$49*L$29)/L$50,0)","v":0}]
[null,null,"Årlig kostnad tillsyn",null,null,null,null,"kr/år",{"$f":"IF(I$52>0,(I$51*I$29)/I$52,0)","v":0},0,0,{"$f":"IF(L$52>0,(L$51*L$29)/L$52,0)","v":0}]
[null,null,"Summa årlig underhållskostnad",null,null,null,null,"kr/år",{"$f":"SUM(I92:I95)","v":0},{"$f":"SUM(J92:J95)","v":0},{"$f":"SUM(K92:K95)","v":0},{"$f":"SUM(L92:L95)","v":0}]
[null,null,"Omräkningsfaktor till nuvärde ",null,null,null,null,null,{"$f":"(1/$H$16)*(1-((1/(1+$H$16))^$H$15))","v":0},{"$f":"(1/$H$16)*(1-((1/(1+$H$16))^$H$15))","v":0},0,0]
[null,null,"Re-investering under kalkylperioden"]
[null,null,"Re-investering armaturer (nuvärde)",null,null,null,null,"kr",{"$f":"IF(I$47<$H$15,(((I$30+I$31)*I$29)/(1+$H$16)^I$47),0)","v":0},{"$f":"IF(J$47<$H$15,(((J$30+J$31)*J$29)/((1+$H$16)^J$47)),0)","v":0},{"$f":"IF(K$47<$H$15,(((K$30+K$31)*K$29)/((1+$H$16)^K47)),0)","v":0},{"$f":"IF(L$47<$H$15,(((L$30+L$31)*L$29)/((1+$H$16)^L47)),0)","v":0}]
[null,null,"Re-investering stolpar (nuvärde)",null,null,null,null,"kr",{"$f":"IF(I$48<$H$15,(((I$33+I$34)*I$32)/(1+$H$16)^I$48),0)","v":0},{"$f":"IF(J$48<$H$15,(((J$33+J$34)*J$32)/(1+$H$16)^J$48),0)","v":0},0,0]
[null,null,"Underhålls- och reinvesteringskostnader hela kalkylperioden",null,null,null,null,"kr",{"$f":"(I96*I97)+I99+I100","v":0},{"$f":"(J96*J97)+J99+J100","v":0},0,0]
[]
[null,null,"S:A ENERGI- & UNDERHÅLLSKOSTNADER ",null,null,null,null,"kr",{"$f":"I89+I101","v":0},{"$f":"J89+J101","v":0},{"$f":"K89+K101","v":0},{"$f":"L89+L101","v":0}]
[null,null,"TOTALKOSTNAD",null,null,null,null,"kr",{"$f":"IF((I78+I103)>0,(I78+I103),\"\")","v":""},{"$f":"IF((J78+J103)>0,(J78+J103),\"\")","v":""},{"$f":"IF((K78+K103)>0,(K78+K103),\"\")","v":""},{"$f":"IF((L78+L103)>0,(L78+L103),\"\")","v":""}]
[null,null,"Besparing elkostnader per år jmf med befintlig anläggning",null,null,null,null,"kr",null,{"$f":"IFERROR($I$87-J87,\"\")","v":0},{"$f":"IFERROR($I$87-K87,\"\")","v":0},0]

{"sheet":"3. Resultat","index":3,"n_rows":28,"n_cols":40,"rows_kept":28,"cut":false,"hidden":false,"merged":[[22,17,22,19],[5,1,5,2],[5,3,5,5],[11,1,11,2],[11,3,11,8],[11,23,11,24],[5,14,5,17],[5,6,5,10],[5,11,5,13],[5,18,5,21],[11,25,11,30],[13,1,13,3],[13,23,13,25],[9,1,9,2],[9,3,9,8],[9,23,9,24],[9,25,9,30],[10,1,10,2],[10,3,10,8],[10,23,10,24],[10,25,10,30],[15,30,15,32],[15,33,15,35],[15,36,15,38],[15,39,15,41],[16,5,16,7],[16,8,16,10],[16,11,16,13],[16,14,16,16],[16,17,16,19],[16,27,16,29],[15,5,15,7],[15,8,15,10],[15,11,15,13],[15,14,15,16],[15,17,15,19],[15,27,15,29],[16,30,16,32],[16,33,16,35],[16,36,16,38],[16,39,16,41],[19,33,19,35],[19,36,19,38],[17,39,17,41],[18,5,18,7],[18,8,18,10],[18,11,18,13],[18,14,18,16],[18,17,18,19],[18,27,18,29],[18,30,18,32],[18,33,18,35],[18,36,18,38],[18,39,18,41],[17,5,17,7],[17,8,17,10],[17,11,17,13],[17,14,17,16],[17,17,17,19],[17,27,17,29],[17,30,17,32],[17,33,17,35],[17,36,17,38],[23,14,23,16],[23,17,23,19],[23,27,23,29],[23,30,23,32],[23,33,23,35],[23,36,23,38],[19,39,19,41],[20,5,20,7],[20,8,20,10],[20,11,20,13],[20,14,20,16],[20,17,20,19],[20,27,20,29],[20,30,20,32],[20,33,20,35],[20,36,20,38],[20,39,20,41],[19,5,19,7],[19,8,19,10],[19,11,19,13],[19,14,19,16],[19,17,19,19],[19,27,19,29],[19,30,19,32],[21,39,21,41],[25,5,25,7],[25,8,25,10],[25,11,25,13],[25,14,25,16],[25,17,25,19],[25,27,25,29],[25,30,25,32],[25,33,25,35],[25,36,25,38],[25,39,25,41],[21,5,21,7],[21,8,21,10],[21,11,21,13],[21,14,21,16],[21,17,21,19],[21,27,21,29],[21,30,21,32],[21,33,21,35],[21,36,21,38],[23,39,23,41],[23,5,23,7],[23,8,23,10],[23,11,23,13],[52,30,52,32],[52,33,52,35],[52,36,52,38],[52,39,52,41],[27,30,27,32],[27,33,27,35],[27,36,27,38],[27,39,27,41],[52,5,52,7],[52,8,52,10],[52,11,52,13],[52,14,52,16],[52,17,52,19],[52,27,52,29],[26,39,26,41],[26,8,26,10],[26,11,26,13],[26,14,26,16],[26,17,26,19],[26,30,26,32],[26,33,26,35],[26,36,26,38],[27,5,27,7],[27,8,27,10],[27,11,27,13],[27,14,27,16],[27,17,27,19],[27,27,27,29],[26,5,26,7],[26,27,26,29]]}
[]
[null,null,null,null,null,null,{"$f":"'1. Introduktion'!G2","v":"LCC-kalkyl för upphandling av utomhusbelysning"}]
[null,null,null,null,null,null,{"$f":"'1. Introduktion'!G3","v":"Version 1:1"}]
[null,null,null,null,null,null,{"$f":"'1. Introduktion'!G4","v":"Datum: 2016-09-15"}]
[]
[]
[]
[]
[null,"Resultat LCC-kalkyl för upphandling av utomhusbelysning",null,null,null,null,null,null,null,null,null,null,null,null,null,null,null,"Sida 1 av 2",null,null,null,null,null,"Resultat LCC-kalkyl för upphandling av utomhusbelysning",null,null,null,null,null,null,null,null,null,null,null,null,null,null,null,"Sida 2 av 2"]
[null,"Projekt:",null,{"$f":"'2. LCC-kalkyl'!F11","v":0},null,null,null,null,null,null,null,null,null,null,null,null,null,null,null,null,null,null,null,"Projekt:",null,{"$f":"IF(ISBLANK(D10),\"\",D10)","v":0}]
[null,"Datum:",null,{"$f":"'2. LCC-kalkyl'!F12","v":0},null,null,null,null,null,null,null,null,null,null,null,null,null,null,null,null,null,null,null,"Datum:",null,{"$f":"IF(ISBLANK(D11),\"\",D11)","v":"00:00:00"}]
[null,"Handläggare:",null,{"$f":"'2. LCC-kalkyl'!F13","v":0},null,null,null,null,null,null,null,null,null,null,null,null,null,null,null,null,null,null,null,"Handläggare:",null,0]
[]
[null,"Beräkning baserad på",null,null,{"$f":"'2. LCC-kalkyl'!H15","v":0},"år",null,"Kalkylränta",null,{"$f":"'2. LCC-kalkyl'!H16","v":1.7500000000000002E-2},null,"Resultaten är beräknade enligt nuvärdesmetoden.",null,null,null,null,null,null,null,null,null,null,null,"Beräkning baserad på",null,null,{"$f":"E14","v":0},"år",null,"Kalkylränta",null,{"$f":"J14","v":1.7500000000000002E-2}]
[]
[null,"LCC-kostnader",null,null,null,{"$f":"IF(ISNA(HLOOKUP(F17,'2. LCC-kalkyl'!$I$55:$XFD$104,2,FALSE)) = TRUE, \"\",HLOOKUP(F17,'2. LCC-kalkyl'!$I$55:$XFD$104,2,FALSE))","v":""},null,null,{"$f":"IF(ISNA(HLOOKUP(I17,'2. LCC-kalkyl'!$I$55:$XFD$104,2,FALSE)) = TRUE, \"\",HLOOKUP(I17,'2. LCC-kalkyl'!$I$55:$XFD$104,2,FALSE))","v":""},null,null,{"$f":"IF(ISNA(HLOOKUP(L17,'2. LCC-kalkyl'!$I$55:$XFD$104,2,FALSE)) = TRUE, \"\",HLOOKUP(L17,'2. LCC-kalkyl'!$I$55:$XFD$104,2,FALSE))","v":""},null,null,{"$f":"IF(ISNA(HLOOKUP(O17,'2. LCC-kalkyl'!$I$55:$XFD$104,2,FALSE)) = TRUE, \"\",HLOOKUP(O17,'2. LCC-kalkyl'!$I$55:$XFD$104,2,FALSE))","v":""},null,null,{"$f":"IF(ISNA(HLOOKUP(R17,'2. LCC-kalkyl'!$I$55:$XFD$104,2,FALSE)) = TRUE, \"\",HLOOKUP(R17,'2. LCC-kalkyl'!$I$55:$XFD$104,2,FALSE))","v":""},null,null,null,null,null,"LCC-kostnader",null,null,null,{"$f":"IF(ISNA(HLOOKUP(AB17,'2. LCC-kalkyl'!$I$55:$XFD$104,2,FALSE)) = TRUE, \"\",HLOOKUP(AB17,'2. LCC-kalkyl'!$I$55:$XFD$104,2,FALSE))","v":""},null,null,{"$f":"IF(ISNA(HLOOKUP(AE17,'2. LCC-kalkyl'!$I$55:$XFD$104,2,FALSE)) = TRUE, \"\",HLOOKUP(AE17,'2. LCC-kalkyl'!$I$55:$XFD$104,2,FALSE))","v":""},null,null,{"$f":"IF(ISNA(HLOOKUP(AH17,'2. LCC-kalkyl'!$I$55:$XFD$104,2,FALSE)) = TRUE, \"\",HLOOKUP(AH17,'2. LCC-kalkyl'!$I$55:$XFD$104,2,FALSE))","v":""},null,null,{"$f":"IF(ISNA(HLOOKUP(AK17,'2. LCC-kalkyl'!$I$55:$XFD$104,2,FALSE)) = TRUE, \"\",HLOOKUP(AK17,'2. LCC-kalkyl'!$I$55:$XFD$104,2,FALSE))","v":""},null,null,{"$f":"IF(ISNA(HLOOKUP(AN17,'2. LCC-kalkyl'!$I$55:$XFD$104,2,FALSE)) = TRUE, \"\",HLOOKUP(AN17,'2. LCC-kalkyl'!$I$55:$XFD$104,2,FALSE))","v":""}]
[null,"Topp 1-5 lönsammaste alternativen",null,null,null,1,null,null,2,null,null,3,null,null,4,null,null,5,null,null,null,null,null,"Topp 6-10 lönsammaste alternativen",null,null,null,6,null,null,7,null,null,8,null,null,9,null,null,10]
[]
[null,"Investeringskostnader",null,null,null,{"$f":"IF(ISNA(HLOOKUP(F17,'2. LCC-kalkyl'!$I$55:$XFD$104,24,FALSE)) = TRUE, \"\",HLOOKUP(F17,'2. LCC-kalkyl'!$I$55:$XFD$104,24,FALSE))","v":""},null,null,{"$f":"IF(ISNA(HLOOKUP(I17,'2. LCC-kalkyl'!$I$55:$XFD$104,24,FALSE)) = TRUE, \"\",HLOOKUP(I17,'2. LCC-kalkyl'!$I$55:$XFD$104,24,FALSE))","v":""},null,null,{"$f":"IF(ISNA(HLOOKUP(L17,'2. LCC-kalkyl'!$I$55:$XFD$104,24,FALSE)) = TRUE, \"\",HLOOKUP(L17,'2. LCC-kalkyl'!$I$55:$XFD$104,24,FALSE))","v":""},null,null,{"$f":"IF(ISNA(HLOOKUP(O17,'2. LCC-kalkyl'!$I$55:$XFD$104,24,FALSE)) = TRUE, \"\",HLOOKUP(O17,'2. LCC-kalkyl'!$I$55:$XFD$104,24,FALSE))","v":""},null,null,{"$f":"IF(ISNA(HLOOKUP(R17,'2. LCC-kalkyl'!$I$55:$XFD$104,24,FALSE)) = TRUE, \"\",HLOOKUP(R17,'2. LCC-kalkyl'!$I$55:$XFD$104,24,FALSE))","v":""},null,null,null,null,null,"Investeringskostnader",null,null,null,{"$f":"IF(ISNA(HLOOKUP(AB17,'2. LCC-kalkyl'!$I$55:$XFD$104,24,FALSE)) = TRUE, \"\",HLOOKUP(AB17,'2. LCC-kalkyl'!$I$55:$XFD$104,24,FALSE))","v":""},null,null,{"$f":"IF(ISNA(HLOOKUP(AE17,'2. LCC-kalkyl'!$I$55:$XFD$104,24,FALSE)) = TRUE, \"\",HLOOKUP(AE17,'2. LCC-kalkyl'!$I$55:$XFD$104,24,FALSE))","v":""},null,null,{"$f":"IF(ISNA(HLOOKUP(AH17,'2. LCC-kalkyl'!$I$55:$XFD$104,24,FALSE)) = TRUE, \"\",HLOOKUP(AH17,'2. LCC-kalkyl'!$I$55:$XFD$104,24,FALSE))","v":""},null,null,{"$f":"IF(ISNA(HLOOKUP(AK17,'2. LCC-kalkyl'!$I$55:$XFD$104,24,FALSE)) = TRUE, \"\",HLOOKUP(AK17,'2. LCC-kalkyl'!$I$55:$XFD$104,24,FALSE))","v":""},null,null,{"$f":"IF(ISNA(HLOOKUP(AN17,'2. LCC-kalkyl'!$I$55:$XFD$104,24,FALSE)) = TRUE, \"\",HLOOKUP(AN17,'2. LCC-kalkyl'!$I$55:$XFD$104,24,FALSE))","v":""}]
[null,"Energikostnader",null,null,null,{"$f":"IF(ISNA(HLOOKUP(F17,'2. LCC-kalkyl'!$I$55:$XFD$104,35,FALSE)) = TRUE, \"\",HLOOKUP(F17,'2. LCC-kalkyl'!$I$55:$XFD$104,35,FALSE))","v":""},null,null,{"$f":"IF(ISNA(HLOOKUP(I17,'2. LCC-kalkyl'!$I$55:$XFD$104,35,FALSE)) = TRUE, \"\",HLOOKUP(I17,'2. LCC-kalkyl'!$I$55:$XFD$104,35,FALSE))","v":""},null,null,{"$f":"IF(ISNA(HLOOKUP(L17,'2. LCC-kalkyl'!$I$55:$XFD$104,35,FALSE)) = TRUE, \"\",HLOOKUP(L17,'2. LCC-kalkyl'!$I$55:$XFD$104,35,FALSE))","v":""},null,null,{"$f":"IF(ISNA(HLOOKUP(O17,'2. LCC-kalkyl'!$I$55:$XFD$104,35,FALSE)) = TRUE, \"\",HLOOKUP(O17,'2. LCC-kalkyl'!$I$55:$XFD$104,35,FALSE))","v":""},null,null,{"$f":"IF(ISNA(HLOOKUP(R17,'2. LCC-kalkyl'!$I$55:$XFD$104,35,FALSE)) = TRUE, \"\",HLOOKUP(R17,'2. LCC-kalkyl'!$I$55:$XFD$104,35,FALSE))","v":""},null,null,null,null,null,"Energikostnader",null,null,null,{"$f":"IF(ISNA(HLOOKUP(AB17,'2. LCC-kalkyl'!$I$55:$XFD$104,35,FALSE)) = TRUE, \"\",HLOOKUP(AB17,'2. LCC-kalkyl'!$I$55:$XFD$104,35,FALSE))","v":""},null,null,{"$f":"IF(ISNA(HLOOKUP(AE17,'2. LCC-kalkyl'!$I$55:$XFD$104,35,FALSE)) = TRUE, \"\",HLOOKUP(AE17,'2. LCC-kalkyl'!$I$55:$XFD$104,35,FALSE))","v":""},null,null,{"$f":"IF(ISNA(HLOOKUP(AH17,'2. LCC-kalkyl'!$I$55:$XFD$104,35,FALSE)) = TRUE, \"\",HLOOKUP(AH17,'2. LCC-kalkyl'!$I$55:$XFD$104,35,FALSE))","v":""},null,null,{"$f":"IF(ISNA(HLOOKUP(AK17,'2. LCC-kalkyl'!$I$55:$XFD$104,35,FALSE)) = TRUE, \"\",HLOOKUP(AK17,'2. LCC-kalkyl'!$I$55:$XFD$104,35,FALSE))","v":""},null,null,{"$f":"IF(ISNA(HLOOKUP(AN17,'2. LCC-kalkyl'!$I$55:$XFD$104,35,FALSE)) = TRUE, \"\",HLOOKUP(AN17,'2. LCC-kalkyl'!$I$55:$XFD$104,35,FALSE))","v":""}]
[null,"Underhållskostnader",null,null,null,{"$f":"IF(ISNA(HLOOKUP(F17,'2. LCC-kalkyl'!$I$55:$XFD$104,47,FALSE)) = TRUE, \"\",HLOOKUP(F17,'2. LCC-kalkyl'!$I$55:$XFD$104,47,FALSE))","v":""},null,null,{"$f":"IF(ISNA(HLOOKUP(I17,'2. LCC-kalkyl'!$I$55:$XFD$104,47,FALSE)) = TRUE, \"\",HLOOKUP(I17,'2. LCC-kalkyl'!$I$55:$XFD$104,47,FALSE))","v":""},null,null,{"$f":"IF(ISNA(HLOOKUP(L17,'2. LCC-kalkyl'!$I$55:$XFD$104,47,FALSE)) = TRUE, \"\",HLOOKUP(L17,'2. LCC-kalkyl'!$I$55:$XFD$104,47,FALSE))","v":""},null,null,{"$f":"IF(ISNA(HLOOKUP(O17,'2. LCC-kalkyl'!$I$55:$XFD$104,47,FALSE)) = TRUE, \"\",HLOOKUP(O17,'2. LCC-kalkyl'!$I$55:$XFD$104,47,FALSE))","v":""},null,null,{"$f":"IF(ISNA(HLOOKUP(R17,'2. LCC-kalkyl'!$I$55:$XFD$104,47,FALSE)) = TRUE, \"\",HLOOKUP(R17,'2. LCC-kalkyl'!$I$55:$XFD$104,47,FALSE))","v":""},null,null,null,null,null,"Underhållskostnader",null,null,null,{"$f":"IF(ISNA(HLOOKUP(AB17,'2. LCC-kalkyl'!$I$55:$XFD$104,47,FALSE)) = TRUE, \"\",HLOOKUP(AB17,'2. LCC-kalkyl'!$I$55:$XFD$104,47,FALSE))","v":""},null,null,{"$f":"IF(ISNA(HLOOKUP(AE17,'2. LCC-kalkyl'!$I$55:$XFD$104,47,FALSE)) = TRUE, \"\",HLOOKUP(AE17,'2. LCC-kalkyl'!$I$55:$XFD$104,47,FALSE))","v":""},null,null,{"$f":"IF(ISNA(HLOOKUP(AH17,'2. LCC-kalkyl'!$I$55:$XFD$104,47,FALSE)) = TRUE, \"\",HLOOKUP(AH17,'2. LCC-kalkyl'!$I$55:$XFD$104,47,FALSE))","v":""},null,null,{"$f":"IF(ISNA(HLOOKUP(AK17,'2. LCC-kalkyl'!$I$55:$XFD$104,47,FALSE)) = TRUE, \"\",HLOOKUP(AK17,'2. LCC-kalkyl'!$I$55:$XFD$104,47,FALSE))","v":""},null,null,{"$f":"IF(ISNA(HLOOKUP(AN17,'2. LCC-kalkyl'!$I$55:$XFD$104,47,FALSE)) = TRUE, \"\",HLOOKUP(AN17,'2. LCC-kalkyl'!$I$55:$XFD$104,47,FALSE))","v":""}]
[null,"Totala LCC-kostnader",null,null,null,{"$f":"IF(ISNA(HLOOKUP(F17,'2. LCC-kalkyl'!$I$55:$XFD$104,50,FALSE)) = TRUE, \"\",HLOOKUP(F17,'2. LCC-kalkyl'!$I$55:$XFD$104,50,FALSE))","v":""},null,null,{"$f":"IF(ISNA(HLOOKUP(I17,'2. LCC-kalkyl'!$I$55:$XFD$104,50,FALSE)) = TRUE, \"\",HLOOKUP(I17,'2. LCC-kalkyl'!$I$55:$XFD$104,50,FALSE))","v":""},null,null,{"$f":"IF(ISNA(HLOOKUP(L17,'2. LCC-kalkyl'!$I$55:$XFD$104,50,FALSE)) = TRUE, \"\",HLOOKUP(L17,'2. LCC-kalkyl'!$I$55:$XFD$104,50,FALSE))","v":""},null,null,{"$f":"IF(ISNA(HLOOKUP(O17,'2. LCC-kalkyl'!$I$55:$XFD$104,50,FALSE)) = TRUE, \"\",HLOOKUP(O17,'2. LCC-kalkyl'!$I$55:$XFD$104,50,FALSE))","v":""},null,null,{"$f":"IF(ISNA(HLOOKUP(R17,'2. LCC-kalkyl'!$I$55:$XFD$104,50,FALSE)) = TRUE, \"\",HLOOKUP(R17,'2. LCC-kalkyl'!$I$55:$XFD$104,50,FALSE))","v":""},null,null,null,null,null,"Totala LCC-kostnader",null,null,null,{"$f":"IF(ISNA(HLOOKUP(AB17,'2. LCC-kalkyl'!$I$55:$XFD$104,50,FALSE)) = TRUE, \"\",HLOOKUP(AB17,'2. LCC-kalkyl'!$I$55:$XFD$104,50,FALSE))","v":""},null,null,{"$f":"IF(ISNA(HLOOKUP(AE17,'2. LCC-kalkyl'!$I$55:$XFD$104,50,FALSE)) = TRUE, \"\",HLOOKUP(AE17,'2. LCC-kalkyl'!$I$55:$XFD$104,50,FALSE))","v":""},null,null,{"$f":"IF(ISNA(HLOOKUP(AH17,'2. LCC-kalkyl'!$I$55:$XFD$104,50,FALSE)) = TRUE, \"\",HLOOKUP(AH17,'2. LCC-kalkyl'!$I$55:$XFD$104,50,FALSE))","v":""},null,null,{"$f":"IF(ISNA(HLOOKUP(AK17,'2. LCC-kalkyl'!$I$55:$XFD$104,50,FALSE)) = TRUE, \"\",HLOOKUP(AK17,'2. LCC-kalkyl'!$I$55:$XFD$104,50,FALSE))","v":""},null,null,{"$f":"IF(ISNA(HLOOKUP(AN17,'2. LCC-kalkyl'!$I$55:$XFD$104,50,FALSE)) = TRUE, \"\",HLOOKUP(AN17,'2. LCC-kalkyl'!$I$55:$XFD$104,50,FALSE))","v":""}]
[]
[null,"Styrning",null,null,null,{"$f":"IF(ISNA(HLOOKUP(F17,'2. LCC-kalkyl'!$I$55:$XFD$104,30,FALSE))=TRUE,\"\",IF(HLOOKUP(F17,'2. LCC-kalkyl'!$I$55:$XFD$104,30,FALSE)>0,\"Ja\",\"Nej\"))","v":""},null,null,{"$f":"IF(ISNA(HLOOKUP(I17,'2. LCC-kalkyl'!$I$55:$XFD$104,30,FALSE))=TRUE,\"\",IF(HLOOKUP(I17,'2. LCC-kalkyl'!$I$55:$XFD$104,30,FALSE)>0,\"Ja\",\"Nej\"))","v":""},null,null,{"$f":"IF(ISNA(HLOOKUP(L17,'2. LCC-kalkyl'!$I$55:$XFD$104,30,FALSE))=TRUE,\"\",IF(HLOOKUP(L17,'2. LCC-kalkyl'!$I$55:$XFD$104,30,FALSE)>0,\"Ja\",\"Nej\"))","v":""},null,null,{"$f":"IF(ISNA(HLOOKUP(O17,'2. LCC-kalkyl'!$I$55:$XFD$104,30,FALSE))=TRUE,\"\",IF(HLOOKUP(O17,'2. LCC-kalkyl'!$I$55:$XFD$104,30,FALSE)>0,\"Ja\",\"Nej\"))","v":""},null,null,{"$f":"IF(ISNA(HLOOKUP(R17,'2. LCC-kalkyl'!$I$55:$XFD$104,30,FALSE))=TRUE,\"\",IF(HLOOKUP(R17,'2. LCC-kalkyl'!$I$55:$XFD$104,30,FALSE)>0,\"Ja\",\"Nej\"))","v":""},null,null,null,null,null,"Styrning",null,null,null,{"$f":"IF(ISNA(HLOOKUP(AB17,'2. LCC-kalkyl'!$I$55:$XFD$104,30,FALSE))=TRUE,\"\",IF(HLOOKUP(AB17,'2. LCC-kalkyl'!$I$55:$XFD$104,30,FALSE)>0,\"Ja\",\"Nej\"))","v":""},null,null,{"$f":"IF(ISNA(HLOOKUP(AE17,'2. LCC-kalkyl'!$I$55:$XFD$104,30,FALSE))=TRUE,\"\",IF(HLOOKUP(AE17,'2. LCC-kalkyl'!$I$55:$XFD$104,30,FALSE)>0,\"Ja\",\"Nej\"))","v":""},null,null,{"$f":"IF(ISNA(HLOOKUP(AH17,'2. LCC-kalkyl'!$I$55:$XFD$104,30,FALSE))=TRUE,\"\",IF(HLOOKUP(AH17,'2. LCC-kalkyl'!$I$55:$XFD$104,30,FALSE)>0,\"Ja\",\"Nej\"))","v":""},null,null,{"$f":"IF(ISNA(HLOOKUP(AK17,'2. LCC-kalkyl'!$I$55:$XFD$104,30,FALSE))=TRUE,\"\",IF(HLOOKUP(AK17,'2. LCC-kalkyl'!$I$55:$XFD$104,30,FALSE)>0,\"Ja\",\"Nej\"))","v":""},null,null,{"$f":"IF(ISNA(HLOOKUP(AN17,'2. LCC-kalkyl'!$I$55:$XFD$104,30,FALSE))=TRUE,\"\",IF(HLOOKUP(AN17,'2. LCC-kalkyl'!$I$55:$XFD$104,30,FALSE)>0,\"Ja\",\"Nej\"))","v":""}]
[]
[null,"Energianvändning & klimatpåverkan ",null,null,null,{"$f":"F16","v":""},null,null,{"$f":"I16","v":""},null,null,{"$f":"L16","v":""},null,null,{"$f":"O16","v":""},null,null,{"$f":"R16","v":""},null,null,null,null,null,"Energianvändning & miljöpåverkan ",null,null,null,{"$f":"AB16","v":""},null,null,{"$f":"AE16","v":""},null,null,{"$f":"AH16","v":""},null,null,{"$f":"AK16","v":""},null,null,{"$f":"AN16","v":""}]
[null,"Energianvändning ",null,null,"[kWh/år]",{"$f":"IF(ISNA(HLOOKUP(F17,'2. LCC-kalkyl'!$I$55:$XFD$104,32,FALSE)) = TRUE, \"\",HLOOKUP(F17,'2. LCC-kalkyl'!$I$55:$XFD$104,32,FALSE))","v":""},null,null,{"$f":"IF(ISNA(HLOOKUP(I17,'2. LCC-kalkyl'!$I$55:$XFD$104,32,FALSE)) = TRUE, \"\",HLOOKUP(I17,'2. LCC-kalkyl'!$I$55:$XFD$104,32,FALSE))","v":""},null,null,{"$f":"IF(ISNA(HLOOKUP(L17,'2. LCC-kalkyl'!$I$55:$XFD$104,32,FALSE)) = TRUE, \"\",HLOOKUP(L17,'2. LCC-kalkyl'!$I$55:$XFD$104,32,FALSE))","v":""},null,null,{"$f":"IF(ISNA(HLOOKUP(O17,'2. LCC-kalkyl'!$I$55:$XFD$104,32,FALSE)) = TRUE, \"\",HLOOKUP(O17,'2. LCC-kalkyl'!$I$55:$XFD$104,32,FALSE))","v":""},null,null,{"$f":"IF(ISNA(HLOOKUP(R17,'2. LCC-kalkyl'!$I$55:$XFD$104,32,FALSE)) = TRUE, \"\",HLOOKUP(R17,'2. LCC-kalkyl'!$I$55:$XFD$104,32,FALSE))","v":""},null,null,null,null,null,"Energianvändning ",null,null,"[kWh/år]",{"$f":"IF(ISNA(HLOOKUP(AB17,'2. LCC-kalkyl'!$I$55:$XFD$104,49,FALSE)) = TRUE, \"\",HLOOKUP(AB17,'2. LCC-kalkyl'!$I$55:$XFD$104,49,FALSE)*1000)","v":""},null,null,{"$f":"IF(ISNA(HLOOKUP(AE17,'2. LCC-kalkyl'!$I$55:$XFD$104,49,FALSE)) = TRUE, \"\",HLOOKUP(AE17,'2. LCC-kalkyl'!$I$55:$XFD$104,49,FALSE)*1000)","v":""},null,null,{"$f":"IF(ISNA(HLOOKUP(AH17,'2. LCC-kalkyl'!$I$55:$XFD$104,49,FALSE)) = TRUE, \"\",HLOOKUP(AH17,'2. LCC-kalkyl'!$I$55:$XFD$104,49,FALSE)*1000)","v":""},null,null,{"$f":"IF(ISNA(HLOOKUP(AK17,'2. LCC-kalkyl'!$I$55:$XFD$104,49,FALSE)) = TRUE, \"\",HLOOKUP(AK17,'2. LCC-kalkyl'!$I$55:$XFD$104,49,FALSE)*1000)","v":""},null,null,{"$f":"IF(ISNA(HLOOKUP(AN17,'2. LCC-kalkyl'!$I$55:$XFD$104,49,FALSE)) = TRUE, \"\",HLOOKUP(AN17,'2. LCC-kalkyl'!$I$55:$XFD$104,49,FALSE)*1000)","v":""}]
[null,"Klimatpåverkan",null,null,"[kgCO2-e/år]",{"$f":"IF(ISNA(HLOOKUP(F17,'2. LCC-kalkyl'!$I$55:$XFD$104,6,FALSE)) = TRUE, \"\",HLOOKUP(F17,'2. LCC-kalkyl'!$I$55:$XFD$104,6,FALSE))","v":""},null,null,{"$f":"IF(ISNA(HLOOKUP(I17,'2. LCC-kalkyl'!$I$55:$XFD$104,6,FALSE)) = TRUE, \"\",HLOOKUP(I17,'2. LCC-kalkyl'!$I$55:$XFD$104,6,FALSE))","v":""},null,null,{"$f":"IF(ISNA(HLOOKUP(L17,'2. LCC-kalkyl'!$I$55:$XFD$104,6,FALSE)) = TRUE, \"\",HLOOKUP(L17,'2. LCC-kalkyl'!$I$55:$XFD$104,6,FALSE))","v":""},null,null,{"$f":"IF(ISNA(HLOOKUP(O17,'2. LCC-kalkyl'!$I$55:$XFD$104,6,FALSE)) = TRUE, \"\",HLOOKUP(O17,'2. LCC-kalkyl'!$I$55:$XFD$104,6,FALSE))","v":""},null,null,{"$f":"IF(ISNA(HLOOKUP(R17,'2. LCC-kalkyl'!$I$55:$XFD$104,6,FALSE)) = TRUE, \"\",HLOOKUP(R17,'2. LCC-kalkyl'!$I$55:$XFD$104,6,FALSE))","v":""},null,null,null,null,null,"Klimatpåverkan",null,null,"[kgC02-e/år]",{"$f":"IF(ISNA(HLOOKUP(AB17,'2. LCC-kalkyl'!$I$55:$XFD$104,6,FALSE)) = TRUE, \"\",HLOOKUP(AB17,'2. LCC-kalkyl'!$I$55:$XFD$104,6,FALSE))","v":""},null,null,{"$f":"IF(ISNA(HLOOKUP(AE17,'2. LCC-kalkyl'!$I$55:$XFD$104,6,FALSE)) = TRUE, \"\",HLOOKUP(AE17,'2. LCC-kalkyl'!$I$55:$XFD$104,6,FALSE))","v":""},null,null,{"$f":"IF(ISNA(HLOOKUP(AH17,'2. LCC-kalkyl'!$I$55:$XFD$104,6,FALSE)) = TRUE, \"\",HLOOKUP(AH17,'2. LCC-kalkyl'!$I$55:$XFD$104,6,FALSE))","v":""},null,null,{"$f":"IF(ISNA(HLOOKUP(AK17,'2. LCC-kalkyl'!$I$55:$XFD$104,6,FALSE)) = TRUE, \"\",HLOOKUP(AK17,'2. LCC-kalkyl'!$I$55:$XFD$104,6,FALSE))","v":""},null,null,{"$f":"IF(ISNA(HLOOKUP(AN17,'2. LCC-kalkyl'!$I$55:$XFD$104,6,FALSE)) = TRUE, \"\",HLOOKUP(AN17,'2. LCC-kalkyl'!$I$55:$XFD$104,6,FALSE))","v":""}]

{"sheet":"4. Kalkylparametrar","index":4,"n_rows":52,"n_cols":9,"rows_kept":52,"cut":false,"hidden":false,"merged":[[52,8,52,10],[34,9,34,10],[45,8,45,10],[46,8,46,10],[38,8,38,10],[39,8,39,10],[40,8,40,10],[43,8,43,10],[44,8,44,10],[34,6,34,8],[35,8,35,10],[36,8,36,10],[42,8,42,10],[37,8,37,10],[9,6,9,10],[15,8,15,10],[50,8,50,10],[25,8,25,10],[27,8,27,10],[18,8,18,10],[32,8,32,10],[33,8,33,10],[22,6,22,8],[22,9,22,10],[17,8,17,10],[29,8,29,10],[30,6,30,8],[41,8,41,10],[30,9,30,10],[31,8,31,10],[5,15,5,18],[5,1,5,2],[5,3,5,5],[5,6,5,7],[28,8,28,10],[12,8,12,10],[11,8,11,10],[23,8,23,10],[24,8,24,10],[19,8,19,10],[20,6,20,8],[13,8,13,10],[9,1,11,4],[16,8,16,10],[26,8,26,10],[14,8,14,10]]}
[]
[null,null,null,null,null,null,{"$f":"'1. Introduktion'!G2","v":"LCC-kalkyl för upphandling av utomhusbelysning"}]
[null,null,null,null,null,null,{"$f":"'1. Introduktion'!G3","v":"Version 1:1"}]
[null,null,null,null,null,null,{"$f":"'1. Introduktion'!G4","v":"Datum: 2016-09-15"}]
[]
[]
[]
[]
[null,"Kalkylparametrar"]
[null,"Samlade instruktioner kring kalkylparametrarna.",null,null,null,null,"KALKYLFÖRUTSÄTTNINGAR (anges av beställaren)"]
[null,null,null,null,null,null,"Not ","Parameter","Instruktion"]
[null,null,null,null,null,null,"1.1","Tid","Här anges anläggningens förväntade livslängd. Kalkylen bör utgå från den armatur med bäst teknisk livslängd. 25 år kan ses som ett referensvärde men det kan också vara längre. 40-60 år är standardvärde för vägar. Om tiden överstiger 2 gånger sämsta livslängden kommer beräkningen bli missvisande."]
[null,null,null,null,null,null,"1.2","Kalkylränta","Kalkylränta (diskonteringsränta) ligger till grund för nuvärdesberäkning och räknar om framtida kostnader och intäkter till dagens värde. Kalkylräntan bör grunda sig på den kalkylränta som organisationen använder sig av vid investeringar, och den kan vara nominell eller real. Ofta används internräntan i LCC-kalkyler. SKL tar fram rekommendationer för internränta för kommuner och landsting. Internräntan föreslås för år 2018 att vara 1,75 procent. En hög ränta tillskriver drift- och underhållskostnader mindre betydelse i den totala kalkylen."]
[null,null,null,null,null,null,"1.3","Elpris","Organisationens avtalade elpris (kr/kWh) anges. Alternativt anges schablonpris på mellan 1,00- 1,50kr/kWh."]
[null,null,null,null,null,null,"1.4","Årlig energiprisökning","Faktor för beräkning av energiprisökning utöver inflation."]
[null,null,null,null,null,null,"1.5","Klimatpåverkan elanvändning","För att kunna beräkna klimatpåverkan från elanvändningen anges här elleverantörens uppgifter om klimatpåverkan från sin elmix (koldioxidutsläpp per kilowattimme). Du kan också använda riktvärden från flik 6. "]
[null,null,null,null,null,null,"1.6","Drifttid anläggning","Ange anläggningens totala drifttid,antal timmar per år. "]
[null,null,null,null,null,null,"1.7","Drifttid full effekt","Ange drifttid (timmar per år) för den tid som armaturen lyser med full effekt. "]
[null,null,null,null,null,null,"1.8","Drifttid effektnivå (dimring) 1","Styrning för utomhusbelysning innebär vanligtvis dimring eller sänkning av effekten. Om dimring efterfrågas i upphandlingen anges här timmar per år som armaturen ska vara på reducerad effekt enligt första dimringsnivån. Tiden ska i första hand vara baserad på befintlig driftdata. En allmän rekommendation är dimring mellan kl. 22-05 på platser där oskyddade trafikanter inte vistas. Detta motsvarar 2555h/år (7h x 365 dagar=2555h/år). Belysningen kan släckas helt på vägar och platser som inte används nattetid. På vägar med stort trafikflöde kan det nattetid sänkas till en belysningsnivå som används för vägar med lågt trafikflöde, lägst vägklass M5 med en medelluminans på 0,5 cd/m2. Läs mer om riktlinjer kring nattsänkning i \"Vägbelysningshandboken\" från Trafikverket, kap 5:10. LCC-kalkylen kan användas för bedömning om det lönar sig att förse en anläggning med system för dimring. För vissa ljuskällor, exempelvis högtrycksnatrium, minskar ljusutbytet vid dimring."]
[null,null,null,null,null,null,"1.9","Drifttid effektnivå (dimring) 2","Om  fler än en dimringsnivå förekommer så ifylles här timmar per år som anläggningen ska vara på reducerad effekt enligt andra dimringsnivån. \n"]
[null,null,null,null,null,null,"INDATA FRÅN ANBUDSGIVARE"]
[null,null,null,null,null,null,null,"Namn","Namn på investeringsalternativet."]
[null,null,null,null,null,null,"BERÄKNING AV INVESTERINGSKOSTNADER"]
[null,null,null,null,null,null,"2.1","Antal armaturer","Antal armaturer som ingår i den föreslagna lösningen."]
[null,null,null,null,null,null,"2.2","Pris per armatur (inkl. ljuskälla, driftdon, styrutrustning)","Här ska totala priset för armatur, ljuskälla, driftdon samt inbyggd styrutrustning anges (pris per styck). Om en armatur har fler än en ljuskälla ska dessa läggas ihop. \n"]
[null,null,null,null,null,null,"2.3","Material- och arbetskostnader per armatur","Här ingår material- och arbetskostnader för installationen, exklusive extern styrutrustning. Även kostnader för driftsättning (injustering och provning) ingår här. Material kan exempelvis vara kablar. Arbetskostnader kan vara personal och maskinhyra. Om entreprenaden ingår i anbudet ska kostnaden för detta anges. Om entreprenad inte ingår får kostnaderna bli en uppskattning. Beräkning ska kunna uppvisas för den upphandlande organisationen."]
[null,null,null,null,null,null,"2.4","Antal stolpar och fundament","Ifylles om stolpar ingår i upphandlingen. Stolpar har en betydligt längre livslängd än armaturer och ingår därmed inte alltid i en belysningsupphandling."]
[null,null,null,null,null,null,"2.5","Pris per stolpe och fundament","Om stolpar ingår i upphandlingen ska totalt pris för stolpe och fundament (per styck) anges här."]
[null,null,null,null,null,null,"2.6","Material- och arbetskostnader per stolpe inkl fundament","Om stolpar ingår i upphandlingen ska material och arbetskostnader för installation anges här."]
[null,null,null,null,null,null,"2.7","Kostnad extern styrutrustning inkl. driftsättning och licensavgifter ","Styrutrustning ingår oftast som en del av armaturen, men det förekommer också separat. Här anges kostnaden för den utrustning som inte ingår i armaturpriset, som ligger utanför själva armaturen. Exempel på detta är övervakningssystem. Kostnaden anges när förutsättningarna finns för denna typ av styrning och när det har efterfrågats i förfrågningsunderlaget. Annars lämnas rutan tom. Förutom styrutrustningen ska även installationskostnader, inkörnings- och driftsättningskostnader, licensavgifter och kostnader för abbonnemang och kommunikation för den externa styrutrustningen ingå i denna kostnadspost.  "]
[null,null,null,null,null,null,"BERÄKNING AV DRIFTSKOSTNADER"]
[null,null,null,null,null,null,"3.1","Effekt per armatur inkl driftsförluster och systemeffekt","Effekt per armatur (W) anges här, inkluderat förluster från driftdon och systemeffekt (standby)."]
[null,null,null,null,null,null,"3.2","Reducerad effektnivå (dimring) 1","Ifylles om belysningsstyrning med dimring efterfrågas i upphandlingen. I detta fält fyllls effekten (W) i för dimringsnivå 1. Om dimringsnivån specificerats av beställaren eller projektören ska denna följas. Det kan exempelvis anges som en vägklass eller anges som procent av full effekt, t.ex. nattsänkning med 30%. Vet man inte de exakta effekterna kan man anta att de motsvarar ljusmängden. Dvs att om en armatur som dimras till 70% av ljusmängden också har 70% av effekten kvar. "]
[null,null,null,null,null,null,"3.3","Reducerad effektnivå (dimring) 2","Här ifylles effekten för dimringsnivå 2, om detta har efterfrågats i upphandlingen. "]
[null,null,null,null,null,null,"BERÄKNING AV UNDERHÅLLSKOSTNADER"]
[null,null,null,null,null,null,"4.1","Ljuskällekostnad per armatur","Här anges kostnader för ljuskällor vid utbyte, kr/armatur. Samtliga ljuskällor i en armatur ska räknas in."]
[null,null,null,null,null,null,"4.2","Arbetskostnad ljuskällebyte","Här anges arbetskostnaden för byte av ljuskällor, kr/armatur. Vid ljuskällebyte ingår ofta rengöring  av kupor och reflektor."]
[null,null,null,null,null,null,"4.3","Utbytesintervall ljuskällor","Här anges intervallet för utbyte av ljuskällor, i enlighet med anläggningens drifts- och underhållsplan. Livslängden beräknas enligt standarder som anges i gällande ekodesignförordningar. Livslängd för LED beräknas enligt IEC 62722-2-1 \"Särskilda krav för LED armaturer\"."]
[null,null,null,null,null,null,"4.4","Driftdonskostnad","Driftdon beräknas ha samma livslängd som ljuskällan. Ibland görs gruppbyten av driftdon i enlighet med anläggningens drifts- och underhållsplan. Denna kostnad ska ingå här, med kostnaden nedbruten per armatur."]
[null,null,null,null,null,null,"4.5","Arbetskostnad driftdonsbyte","Här anges arbetskostnaden för (grupp)byte av driftdon, kr/armatur."]
[null,null,null,null,null,null,"4.6","Utbytesintervall driftdon","Här anges intervallet för (grupp)utbyte av driftdon, i enlighet med anläggningens drifts- och underhållsplan.  Livslängden beräknas enligt standarder som anges i gällande ekodesignförordningar. "]
[null,null,null,null,null,null,"4.7","Livslängd armatur ","Här anges armaturens livslängd i år. Om kalkylperioden är längre än armaturens livslängd läggs ett nuvärdesberäknat inköp till i beräkningen."]
[null,null,null,null,null,null,"4.8","Livslängd stolpe ","Här anges stolpens livslängd i år. Om kalkylperioden är längre än stolpens livslängd läggs ett nuvärdesberäknat inköp till i beräkningen. Stolpens livslängd kan variera mellan 25 till 50 år beroende på kvalitet och målningssystem. Vanliga rotlackerade stolpar kan stå i upp till 50 år. Eftergivliga stolpar av tunnplåt med rotlackering eller vanliga stolpar utan rotlackering har ca 25 års livslängd. "]
[null,null,null,null,null,null,"4.9","Arbetskostnad inspektion","Här anges kostnaden för inspektion av anläggningen, dvs särskild kontroll där anläggningen användningsbesiktigas av fackkunnig person. Man tittar  noggrant efter skador på anläggningen, att dokumentationen stämmer och att felskydden fungerar som de ska. Rengöring av armaturerna (LED) kan vara lämplig att samordna med inspektionen. Grad av rengöring ska anges i förfrågningsunderlaget; detta beror på miljön som armaturen ska sitta i."]
[null,null,null,null,null,null,"4.10","Inspektionsintervall","Inspektion sker i enlighet med anläggningens drifts- och underhållsplan. Vissa  anläggningar har bestämda intervall, till exempel luftledning för lågspänning  vart 8:e år. För andra anläggningstyper är det upp till innehavaren att besluta om lämpligt intervall. Exempel: Trafikverket har 6 år mellan inspektionerna, Stockholm stad har 4 år mellan inspektionerna. Inspektion görs ofta i samband med  seriebyte av ljuskällor.  "]
[null,null,null,null,null,null,"4.11","Arbetskostnad tillsyn","Här anges kostnaden för tillsyn av anläggningen. Tillsyn är innehavarens kontroll att anläggningen fungerar som den ska och ska ge  säkerhet mot person- eller sakskador på grund av el."]
[null,null,null,null,null,null,"4.12","Tillsynsintervall","Tillsyn sker i enlighet med anläggningens drifts- och underhållsplan.Trafikverket, exempelvis, har tillsyn 2 gånger per år. "]
[null,null,null,null,null,null,"RESULTAT"]
[null,null,null,null,null,null,null,"Totalkostnad","Total kostnad för belysningsanläggningen under hela dess nyttjandetid."]
[null,null,null,null,null,null,null,"Energikostnader per år","Årlig energikostnad visas här för att öka medvetenheten kring anläggningens energianvändning."]
[null,null,null,null,null,null,null,"Energikostnader hela livslängden","Anläggningens totala energikostnader under dess livslängd anges här. I vissa fall kan renovering under nyttjandetiden bidra till förbättrad energiprestanda."]
[null,null,null,null,null,null,null,"Klimatpåverkan","I LCC-kalkylen beräknas miljöpåverkan, mätt i CO2-ekvivalenter, utifrån produkternas energianvändning."]

{"sheet":"5. Svarsformulär","index":5,"n_rows":42,"n_cols":10,"rows_kept":42,"cut":false,"hidden":false,"merged":[[5,1,5,2],[5,3,5,5],[5,7,5,11],[5,12,5,15],[5,16,5,19],[20,11,20,14],[21,11,21,14],[31,3,31,7],[5,20,5,23],[8,3,8,7],[22,11,22,14],[23,11,23,14],[30,11,30,14],[31,11,31,14],[16,11,16,14],[18,11,18,14],[19,11,19,14],[12,11,12,14],[13,11,13,14],[14,11,14,14],[37,11,37,14],[38,11,38,14],[32,3,32,7],[33,11,33,14],[34,11,34,14],[35,11,35,14],[36,11,36,14]]}
[]
[null,null,null,null,null,null,{"$f":"'1. Introduktion'!G2","v":"LCC-kalkyl för upphandling av utomhusbelysning"}]
[null,null,null,null,null,null,{"$f":"'1. Introduktion'!G3","v":"Version 1:1"}]
[null,null,null,null,null,null,{"$f":"'1. Introduktion'!G4","v":"Datum: 2016-09-15"}]
[]
[]
[]
[]
[null,null,null,"Svarsformulär för anbudsgivare"]
[null,null,null,"LCC-kalkyl för upphandling av utomhusbelysning."]
[null,null,null,"Bifoga ett blad per investeringsalternativ. "]
[]
[null,null,null,"Projektnamn"]
[null,null,null,"Datum"]
[null,null,null,"Handläggare"]
[]
[null,null,null,"Namn "]
[null,null,null,"Investeringskostnader"]
[null,null,"2.1","Antal armaturer",null,null,null,null,null,"stk"]
[null,null,"2.2","Pris per armatur (inkl. ljuskälla, driftdon, styrutrustning)",null,null,null,null,null,"kr/st"]
[null,null,"2.3","Material- och arbetskostnader per armatur",null,null,null,null,null,"kr/st"]
[null,null,"2.4","Antal stolpar och fundament",null,null,null,null,null,"stk"]
[null,null,"2.5","Pris per stolpe och fundament",null,null,null,null,null,"kr/st"]
[null,null,"2.6","Material- och arbetskostnader per stolpe inkl fundament",null,null,null,null,null,"kr/st"]
[null,null,"2.7","Kostnad extern styrutrustning",null,null,null,null,null,"kr"]
[null,null,null,"Driftskostnader"]
[null,null,"3.1","Effekt per armatur inkl driftsförluster",null,null,null,null,null,"W"]
[null,null,"3.2","Reducerad effektnivå (dimring) 1",null,null,null,null,null,"W"]
[null,null,"3.3","Reducerad effektnivå (dimring) 2",null,null,null,null,null,"W"]
[null,null,null,"Underhållskostnader"]
[null,null,"4.1","Ljuskällekostnad per armatur",null,null,null,null,null,"kr/st"]
[null,null,"4.2","Arbetskostnad ljuskällebyte",null,null,null,null,null,"kr/st"]
[null,null,"4.3","Utbytesintervall ljuskällor",null,null,null,null,null,"h"]
[null,null,"4.4","Driftdonskostnad",null,null,null,null,null,"kr/st"]
[null,null,"4.5","Arbetskostnad driftdonsbyte",null,null,null,null,null,"kr/st"]
[null,null,"4.6","Utbytesintervall driftdon",null,null,null,null,null,"h"]
[null,null,"4.7","Livslängd armatur",null,null,null,null,null,"år"]
[null,null,"4.8","Livslängd stolpe",null,null,null,null,null,"år"]
[null,null,"4.9","Arbetskostnad inspektion",null,null,null,null,null,"kr/st"]
[null,null,"4.10","Inspektionsintervall",null,null,null,null,null,"år"]
[null,null,"4.11","Arbetskostnad tillsyn",null,null,null,null,null,"kr/st"]
[null,null,"4.12","Tillsynsintervall",null,null,null,null,null,"år"]

{"sheet":"6. Beräkningsfaktorer klimatpåv","index":6,"n_rows":17,"n_cols":8,"rows_kept":17,"cut":false,"hidden":false,"merged":[[37,8,37,10],[38,8,38,10],[39,8,39,10],[29,8,29,10],[30,8,30,10],[31,8,31,10],[33,8,33,10],[35,8,35,10],[36,8,36,10],[28,8,28,10],[17,8,17,10],[18,8,18,10],[19,8,19,10],[20,8,20,10],[21,6,21,8],[22,8,22,10],[23,8,23,10],[24,8,24,10],[25,8,25,10],[26,8,26,10],[27,8,27,10],[16,8,16,10],[5,3,5,5],[5,6,5,7],[5,15,5,18],[9,6,9,7],[15,8,15,10],[11,1,16,4],[9,1,10,4],[16,6,16,7]]}
[]
[null,null,null,null,null,null,{"$f":"'1. Introduktion'!G2","v":"LCC-kalkyl för upphandling av utomhusbelysning"}]
[null,null,null,null,null,null,{"$f":"'1. Introduktion'!G3","v":"Version 1:1"}]
[null,null,null,null,null,null,{"$f":"'1. Introduktion'!G4","v":"Datum: 2016-09-15"}]
[]
[]
[]
[]
[null,"Klimatpåverkan "]
[null,"Riktvärden för att kunna beräkna klimatpåverkan från elenergi. Används som frivillig indata i rad 1.5 i LCC-kalkylen.",null,null,null,null,"Värden för beräkning av klimatpåverkan från elanvändning  [kgCO2/kWh]"]
[null,null,null,null,null,null,"Ursprungsmärkt el",0]
[null,null,null,null,null,null,"Svensk elmix (normalår)",0.02]
[null,null,null,null,null,null,"Nordisk elmix",0.1]
[null,null,null,null,null,null,"El av okänt ursprung (Norden)",0.34399999999999997]
[null,null,null,null,null,null,"EU (25)",0.41499999999999998]
[]
[null,null,null,null,null,null,"Källa: Svensk Energi (www.svenskenergi.se) 2016-05-25. \nVärdet för EU 25 är hämtat från rapporten \"Den svenska elens miljöpåvekan\" från 2010."]